fUSD/lending_fUSD_20250514
["ID","MTS","AMOUNT","RATE_DAILY","PERIOD"]
[361086835,1747245037906,-1598.7898,0.00010858,2]
[361086836,1747245037915,-1000.0,0.00010858,2]
[361086837,1747245037925,-186.78195416,0.000109,2]
[361086838,1747245037936,-3059.081075,0.00010958,2]
[361086839,1747245037945,-3059.081075,0.00010958,2]
[361086840,1747245037955,-181.071225,0.00010958,2]
[361086841,1747245037964,-3059.081075,0.00010958,2]
[361086842,1747245037973,-3059.081075,0.00010958,2]
[361086844,1747245037982,-246.296069,0.00010958,2]
[361086846,1747245037991,-246.296069,0.00010958,2]
[361086847,1747245038001,-246.296069,0.00010958,2]
[361086848,1747245038010,-246.296069,0.00010958,2]
[361086849,1747245038020,-400.0,0.00010958,2]
[361086850,1747245038030,-400.0,0.00010958,2]
[361086851,1747245038039,-400.0,0.00010958,2]
[361086852,1747245038048,-402.97,0.00010958,2]
[361086853,1747245038058,-400.0,0.00010958,2]
[361086854,1747245038067,-400.0,0.00010958,2]
[361086855,1747245038077,-400.0,0.00010958,2]
[361086856,1747245038086,-491.32,0.00010958,2]
[361086857,1747245038095,-400.0,0.00010958,2]
[361086858,1747245038104,-400.0,0.00010958,2]
[361086859,1747245038114,-198.871771,0.00010958,2]
[361086860,1747245038124,-400.0,0.00010958,2]
[361086861,1747245038133,-151.0,0.00010958,2]
[361086862,1747245038143,-400.0,0.00010958,2]
[361086863,1747245038152,-198.871771,0.00010958,2]
[361086864,1747245038161,-400.0,0.00010958,2]
[361086865,1747245038171,-400.0,0.00010958,2]
[361086866,1747245038180,-400.0,0.00010958,2]
[361086867,1747245038191,-400.0,0.00010958,2]
[361086868,1747245038201,-425.08,0.00010958,2]
[361086869,1747245038210,-400.0,0.00010958,2]
[361086870,1747245038220,-152.058715,0.00010958,2]
[361086871,1747245038230,-400.0,0.00010958,2]
[361086872,1747245038239,-151.0,0.00010958,2]
[361086873,1747245038250,-151.0,0.00010958,2]
[361086874,1747245038261,-1300.796491,0.00010958,2]
[361086875,1747245038270,-1300.796491,0.00010958,2]
[361086876,1747245038280,-1300.796491,0.00010958,2]
[361086877,1747245038289,-1300.796491,0.00010958,2]
[361086878,1747245038299,-161.226796,0.00010958,2]
[361086879,1747245038308,-400.0,0.00010958,2]
[361086880,1747245038318,-161.226796,0.00010958,2]
[361086881,1747245038333,-252.1,0.00010958,2]
[361086882,1747245038343,-151.0,0.00010958,2]
[361086883,1747245038352,-151.0,0.00010958,2]
[361086884,1747245038362,-487.667577,0.00010958,2]
[361086885,1747245038373,-400.0,0.00010958,2]
[361086886,1747245038382,-400.0,0.00010958,2]
[361086887,1747245038391,-487.667577,0.00010958,2]
[361086888,1747245038401,-151.0,0.00010958,2]
[361086889,1747245038410,-400.0,0.00010958,2]
[361086890,1747245038420,-400.0,0.00010958,2]
[361086891,1747245038429,-483.11,0.00010958,2]
[361086892,1747245038441,-400.0,0.00010958,2]
[361086893,1747245038450,-400.0,0.00010958,2]
[361086894,1747245038460,-400.0,0.00010958,2]
[361086895,1747245038469,-400.0,0.00010958,2]
[361086896,1747245038478,-400.0,0.00010958,2]
[361086897,1747245038487,-400.0,0.00010958,2]
[361086898,1747245038497,-151.0,0.00010958,2]
[361086899,1747245038506,-400.0,0.00010958,2]
[361086900,1747245038516,-400.0,0.00010958,2]
[361086901,1747245038525,-401.03085462,0.00010958,2]
[361086902,1747245038534,-400.0,0.00010958,2]
[361086903,1747245038543,-452.01783252,0.00010958,2]
[361086904,1747245038553,-151.0,0.00010958,2]
[361086905,1747245038563,-400.0,0.00010958,2]
[361086906,1747245038572,-400.0,0.00010958,2]
[361086907,1747245038581,-403.38852268,0.00010958,2]
[361086908,1747245038591,-400.0,0.00010958,2]
[361086909,1747245038600,-400.0,0.00010958,2]
[361086910,1747245038610,-400.0,0.00010958,2]
[361086911,1747245038619,-404.34923082,0.00010958,2]
[361086912,1747245038629,-400.0,0.00010958,2]
[361086913,1747245038638,-400.0,0.00010958,2]
[361086914,1747245038648,-400.0,0.00010958,2]
[361086915,1747245038658,-400.0,0.00010958,2]
[361086916,1747245038667,-162.15912802,0.00010958,2]
[361086917,1747245038677,-400.0,0.00010958,2]
[361086918,1747245038688,-403.28336099,0.00010958,2]
[361086919,1747245038697,-400.0,0.00010958,2]
[361086920,1747245038707,-400.0,0.00010958,2]
[361086921,1747245038717,-400.0,0.00010958,2]
[361086922,1747245038726,-400.0,0.00010958,2]
[361086923,1747245038736,-400.0,0.00010958,2]
[361086924,1747245038745,-400.0,0.00010958,2]
[361086925,1747245038755,-400.0,0.00010958,2]
[361086926,1747245038764,-400.0,0.00010958,2]
[361086927,1747245038774,-400.0,0.00010958,2]
[361086928,1747245038782,-523.02146016,0.00010958,2]
[361086929,1747245038790,-400.0,0.00010958,2]
[361086930,1747245038802,-151.0,0.00010958,2]
[361086931,1747245038813,-400.0,0.00010958,2]
[361086932,1747245038823,-400.0,0.00010958,2]
[361086933,1747245038835,-400.0,0.00010958,2]
[361086934,1747245038845,-400.0,0.00010958,2]
[361086935,1747245038855,-400.0,0.00010958,2]
[361086936,1747245038865,-400.0,0.00010958,2]
[361086937,1747245038874,-400.0,0.00010958,2]
[361086938,1747245038884,-151.0,0.00010958,2]
[361086939,1747245038893,-400.0,0.00010958,2]
[361086940,1747245038903,-151.0,0.00010958,2]
[361086941,1747245038912,-400.0,0.00010958,2]
[361086942,1747245038922,-400.0,0.00010958,2]
[361086943,1747245038932,-541.67,0.00010958,2]
[361086944,1747245038942,-400.0,0.00010958,2]
[361086945,1747245038952,-460.157626,0.00010958,2]
[361086946,1747245038962,-400.0,0.00010958,2]
[361086947,1747245038971,-460.157626,0.00010958,2]
[361086948,1747245038981,-400.0,0.00010958,2]
[361086949,1747245038990,-1065.826707,0.00010958,2]
[361086950,1747245039000,-500.0,0.00010958,2]
[361086951,1747245039009,-400.0,0.00010958,2]
[361086952,1747245039020,-1169.33,0.00010958,2]
[361086953,1747245039031,-400.0,0.00010958,2]
[361086954,1747245039042,-400.0,0.00010958,2]
[361086955,1747245039052,-402.54369734,0.00010958,2]
[361086956,1747245039063,-400.0,0.00010958,2]
[361086957,1747245039073,-400.0,0.00010958,2]
[361086958,1747245039082,-500.0,0.00010958,2]
[361086959,1747245039091,-320.08614335,0.00010958,2]
[361086962,1747245039626,-79.91385665,0.00010958,2]
[361086963,1747245039636,-202.08614335,0.00010958,2]
[361086964,1747245039681,-197.91385665,0.00010958,2]
[361086965,1747245039691,-400.0,0.00010958,2]
[361086966,1747245039700,-88.21287972,0.00010958,2]
[361086967,1747245039894,-311.78712028,0.00010958,2]
[361086968,1747245039903,-172.9554143,0.00010958,2]
[361086969,1747245039916,-227.0445857,0.00010958,2]
[361086970,1747245039925,-288.4554143,0.00010958,2]
[361086971,1747245039998,-111.5445857,0.00010958,2]
[361086972,1747245040008,-400.0,0.00010958,2]
[361086973,1747245040018,-1389.65,0.00010958,2]
[361086974,1747245040026,-339.72263177,0.00010958,2]
[361086979,1747245042662,-60.27736823,0.00010958,2]
[361086980,1747245042671,-400.0,0.00010958,2]
[361086981,1747245042680,-400.0,0.00010958,2]
[361086982,1747245042689,-400.0,0.00010958,2]
[361086983,1747245042698,-400.0,0.00010958,2]
[361086984,1747245042707,-400.0,0.00010958,2]
[361086985,1747245042716,-400.0,0.00010958,2]
[361086986,1747245042726,-436.17,0.00010958,2]
[361086987,1747245042735,-400.0,0.00010958,2]
[361086988,1747245042743,-400.0,0.00010958,2]
[361086989,1747245042752,-400.0,0.00010958,2]
[361086990,1747245042761,-490.69957762,0.00010958,2]
[361086991,1747245042771,-400.0,0.00010958,2]
[361086992,1747245042780,-400.0,0.00010958,2]
[361086993,1747245042789,-400.0,0.00010958,2]
[361086994,1747245042798,-400.0,0.00010958,2]
[361086995,1747245042807,-400.0,0.00010958,2]
[361086996,1747245042816,-400.0,0.00010958,2]
[361086997,1747245042825,-400.0,0.00010958,2]
[361086998,1747245042834,-400.0,0.00010958,2]
[361086999,1747245042843,-400.0,0.00010958,2]
[361087000,1747245042852,-202.30390307,0.00010958,2]
[361087001,1747245042861,-562.85,0.00010958,2]
[361087002,1747245042870,-400.0,0.00010958,2]
[361087003,1747245042879,-400.0,0.00010958,2]
[361087004,1747245042888,-400.0,0.00010958,2]
[361087005,1747245042897,-400.0,0.00010958,2]
[361087006,1747245042906,-400.0,0.00010958,2]
[361087007,1747245042915,-400.0,0.00010958,2]
[361087008,1747245042924,-400.0,0.00010958,2]
[361087010,1747245042933,-400.0,0.00010958,2]
[361087012,1747245042943,-151.0,0.00010958,2]
[361087013,1747245042952,-151.0,0.00010958,2]
[361087014,1747245042961,-400.0,0.00010958,2]
[361087015,1747245042971,-403.97722106,0.00010958,2]
[361087016,1747245042980,-573.11,0.00010958,2]
[361087017,1747245042989,-470.11340683,0.00010958,2]
[361087018,1747245042998,-400.0,0.00010958,2]
[361087019,1747245043007,-415.63,0.00010958,2]
[361087020,1747245043016,-459.23,0.00010958,2]
[361087021,1747245043025,-400.0,0.00010958,2]
[361087023,1747245043034,-400.0,0.00010958,2]
[361087024,1747245043043,-400.0,0.00010958,2]
[361087027,1747245043053,-400.0,0.00010958,2]
[361087028,1747245043062,-151.0,0.00010958,2]
[361087030,1747245043072,-400.0,0.00010958,2]
[361087032,1747245043081,-151.0,0.00010958,2]
[361087035,1747245043091,-400.0,0.00010958,2]
[361087037,1747245043101,-400.0,0.00010958,2]
[361087038,1747245043109,-400.0,0.00010958,2]
[361087040,1747245043118,-400.0,0.00010958,2]
[361087042,1747245043127,-400.0,0.00010958,2]
[361087044,1747245043137,-400.0,0.00010958,2]
[361087046,1747245043146,-400.0,0.00010958,2]
[361087048,1747245043155,-659.95,0.00010958,2]
[361087050,1747245043164,-400.0,0.00010958,2]
[361087052,1747245043174,-400.0,0.00010958,2]
[361087054,1747245043183,-949.23,0.00010958,2]
[361087056,1747245043193,-400.0,0.00010958,2]
[361087058,1747245043202,-759.05,0.00010958,2]
[361087060,1747245043212,-400.0,0.00010958,2]
[361087062,1747245043222,-400.0,0.00010958,2]
[361087064,1747245043231,-400.0,0.00010958,2]
[361087066,1747245043240,-400.0,0.00010958,2]
[361087068,1747245043250,-400.0,0.00010958,2]
[361087070,1747245043259,-1002.27841792,0.00010958,2]
[361087072,1747245043268,-400.0,0.00010958,2]
[361087074,1747245043278,-400.0,0.00010958,2]
[361087076,1747245043287,-400.0,0.00010958,2]
[361087078,1747245043296,-170.97914135,0.00010958,2]
[361087080,1747245043305,-404.77903032,0.00010958,2]
[361087082,1747245043315,-446.59,0.00010958,2]
[361087084,1747245043325,-400.0,0.00010958,2]
[361087086,1747245043337,-400.0,0.00010958,2]
[361087088,1747245043346,-400.0,0.00010958,2]
[361087090,1747245043355,-400.0,0.00010958,2]
[361087092,1747245043365,-400.0,0.00010958,2]
[361087094,1747245043374,-526.34,0.00010958,2]
[361087096,1747245043383,-358.0,0.00010958,2]
[361087098,1747245043392,-400.0,0.00010958,2]
[361087100,1747245043402,-400.0,0.00010958,2]
[361087102,1747245043411,-400.0,0.00010958,2]
[361087104,1747245043420,-400.0,0.00010958,2]
[361087106,1747245043429,-400.0,0.00010958,2]
[361087108,1747245043438,-400.0,0.00010958,2]
[361087110,1747245043447,-400.0,0.00010958,2]
[361087112,1747245043456,-400.0,0.00010958,2]
[361087114,1747245043465,-400.0,0.00010958,2]
[361087116,1747245043474,-400.0,0.00010958,2]
[361087118,1747245043483,-524.1,0.00010958,2]
[361087120,1747245043493,-400.0,0.00010958,2]
[361087122,1747245043502,-400.0,0.00010958,2]
[361087124,1747245043511,-400.0,0.00010958,2]
[361087126,1747245043521,-400.0,0.00010958,2]
[361087128,1747245043529,-400.0,0.00010958,2]
[361087130,1747245043538,-400.0,0.00010958,2]
[361087132,1747245043548,-400.0,0.00010958,2]
[361087134,1747245043557,-400.0,0.00010958,2]
[361087136,1747245043566,-400.0,0.00010958,2]
[361087138,1747245043575,-3205.12885983,0.00010958,2]
[361087144,1747245043618,-377.44114017,0.00010958,2]
[361087146,1747245043626,-525.53293808,0.00010958,2]
[361087148,1747245043635,-400.0,0.00010958,2]
[361087150,1747245043644,-400.00733638,0.00010958,2]
[361087152,1747245043653,-400.0,0.00010958,2]
[361087154,1747245043662,-400.0,0.00010958,2]
[361087156,1747245043671,-400.0,0.00010958,2]
[361087158,1747245043680,-240.06362406,0.00010958,2]
[361087160,1747245043690,-400.0,0.00010958,2]
[361087161,1747245043699,-400.0,0.00010958,2]
[361087163,1747245043708,-927.61,0.00010958,2]
[361087165,1747245043717,-37.50099926,0.00010958,2]
[361087168,1747245043732,-370.04529316,0.00010958,2]
[361087170,1747245043741,-400.0,0.00010958,2]
[361087172,1747245043750,-400.0,0.00010958,2]
[361087174,1747245043759,-400.0,0.00010958,2]
[361087176,1747245043768,-400.0,0.00010958,2]
[361087178,1747245043777,-469.273682,0.00010958,2]
[361087180,1747245043787,-400.0,0.00010958,2]
[361087182,1747245043796,-965.03,0.00010958,2]
[361087184,1747245043805,-151.0,0.00010958,2]
[361087186,1747245043814,-400.0,0.00010958,2]
[361087188,1747245043823,-400.0,0.00010958,2]
[361087190,1747245043832,-469.273682,0.00010958,2]
[361087192,1747245043841,-997.55,0.00010958,2]
[361087194,1747245043849,-400.0,0.00010958,2]
[361087196,1747245043858,-151.0,0.00010958,2]
[361087198,1747245043867,-626.87,0.00010958,2]
[361087200,1747245043876,-400.0,0.00010958,2]
[361087202,1747245043885,-400.0,0.00010958,2]
[361087204,1747245043894,-151.0,0.00010958,2]
[361087206,1747245043903,-400.0,0.00010958,2]
[361087208,1747245043912,-151.0,0.00010958,2]
[361087210,1747245043921,-400.0,0.00010958,2]
[361087212,1747245043930,-450.77002439,0.00010958,2]
[361087214,1747245043940,-400.0,0.00010958,2]
[361087215,1747245043949,-400.0,0.00010958,2]
[361087217,1747245043958,-116.0396038,0.00010958,2]
[361087227,1747245045650,-283.9603962,0.00010958,2]
[361087228,1747245045661,-400.0,0.00010958,2]
[361087229,1747245045671,-400.0,0.00010958,2]
[361087230,1747245045682,-283.08649837,0.00010958,2]
[361087231,1747245045697,-400.0,0.00010958,2]
[361087232,1747245045707,-400.0,0.00010958,2]
[361087233,1747245045717,-400.0,0.00010958,2]
[361087234,1747245045727,-400.0,0.00010958,2]
[361087235,1747245045737,-400.0,0.00010958,2]
[361087236,1747245045747,-517.93,0.00010958,2]
[361087237,1747245045756,-2650.63,0.00010958,2]
[361087238,1747245045766,-446.8,0.00010958,2]
[361087239,1747245045776,-400.0,0.00010958,2]
[361087240,1747245045785,-400.0,0.00010958,2]
[361087241,1747245045795,-400.0,0.00010958,2]
[361087242,1747245045805,-178.14010293,0.00010958,2]
[361087243,1747245045814,-400.0,0.00010958,2]
[361087244,1747245045823,-276.15943096,0.00010958,2]
[361087248,1747245289389,416.48,9.797e-05,2]
[361087249,1747245510360,-182.76,0.00010094,2]
[361087250,1747245510383,-1000.0,0.00010094,2]
[361087251,1747245510406,-200.0,0.00010094,2]
[361087252,1747245510434,-330.18,0.00010095,2]
[361087253,1747245510456,-736.42822,0.000102,2]
[361087254,1747245510480,-200.0,0.00010287,2]
[361087255,1747245510504,-167.12,0.00010397,2]
[361087256,1747245510526,-150.0,0.0001065,2]
[361087257,1747245510548,-154.64742572,0.00010757,2]
[361087258,1747245510570,-150.0,0.00010773,2]
[361087259,1747245510593,-300.0,0.00010856,2]
[361087260,1747245510616,-1200.0,0.00010857,2]
[361087261,1747245510639,-300.0,0.00010857,2]
[361087262,1747245510665,-300.0,0.00010857,2]
[361087263,1747245510689,-664.81770711,0.00010858,2]
[361087264,1747245510713,-632.5878,0.00010858,2]
[361087265,1747245510737,-3113.2297,0.00010858,2]
[361087266,1747245510762,-482.5176,0.00010858,2]
[361087267,1747245510786,-1000.0,0.00010858,2]
[361087268,1747245510811,-150.0,0.00010865,2]
[361087269,1747245510834,-209.77876779,0.000109,2]
[361087270,1747245510859,-150.0,0.0001095,2]
[361087271,1747245510884,-287.61899177,0.00010951,2]
[361087272,1747245510909,-151.0,0.00010951,2]
[361087273,1747245510933,-668.65185757,0.00010951,2]
[361087274,1747245510957,-1439.04716418,0.00010951,2]
[361087275,1747245510987,-156.587,0.00010951,2]
[361087276,1747245511014,-207.4,0.00010951,2]
[361087277,1747245511039,-151.0,0.00010951,2]
[361087278,1747245511063,-1000.0,0.00010957,2]
[361087279,1747245511086,-166.03,0.00010957,2]
[361087280,1747245511110,-178.71463007,0.00010957,2]
[361087281,1747245511135,-171.903434,0.00010958,2]
[361087282,1747245511160,-171.903434,0.00010958,2]
[361087283,1747245511184,-448.01347351,0.00010958,2]
[361087284,1747245511208,-151.0,0.00010958,2]
[361087285,1747245511232,-151.0,0.00010958,2]
[361087286,1747245511255,-456.79,0.00010958,2]
[361087287,1747245511277,-400.0,0.00010958,2]
[361087288,1747245511302,-450.1,0.00010958,2]
[361087289,1747245511323,-400.0,0.00010958,2]
[361087290,1747245511346,-400.0,0.00010958,2]
[361087291,1747245511368,-400.0,0.00010958,2]
[361087292,1747245511391,-400.0,0.00010958,2]
[361087293,1747245511414,-400.0,0.00010958,2]
[361087294,1747245511439,-403.79604952,0.00010958,2]
[361087295,1747245511463,-679.14,0.00010958,2]
[361087296,1747245511486,-400.0,0.00010958,2]
[361087297,1747245511510,-400.0,0.00010958,2]
[361087298,1747245511540,-400.0,0.00010958,2]
[361087299,1747245511564,-400.0,0.00010958,2]
[361087300,1747245511596,-400.0,0.00010958,2]
[361087301,1747245511626,-400.0,0.00010958,2]
[361087302,1747245511653,-289.55017534,0.00010958,2]
[361087303,1747245511676,-400.0,0.00010958,2]
[361087304,1747245511699,-604.74,0.00010958,2]
[361087305,1747245511723,-400.0,0.00010958,2]
[361087306,1747245511747,-151.660511,0.00010958,2]
[361087307,1747245511769,-151.0,0.00010958,2]
[361087308,1747245511793,-151.0,0.00010958,2]
[361087309,1747245511817,-151.0,0.00010958,2]
[361087310,1747245511840,-151.0,0.00010958,2]
[361087311,1747245511864,-400.0,0.00010958,2]
[361087312,1747245511887,-400.0,0.00010958,2]
[361087313,1747245511911,-264.07554328,0.00010958,2]
[361087314,1747245511937,-445.63256898,0.00010958,2]
[361087315,1747245512279,-379.29686615,0.00010958,2]
[361087316,1747245512302,-400.0,0.00010958,2]
[361087317,1747245512324,-400.0,0.00010958,2]
[361087318,1747245512345,-151.0,0.00010958,2]
[361087319,1747245512367,-400.0,0.00010958,2]
[361087320,1747245512389,-151.0,0.00010958,2]
[361087321,1747245512410,-400.0,0.00010958,2]
[361087322,1747245512431,-200.0,0.00010958,2]
[361087323,1747245512453,-400.0,0.00010958,2]
[361087324,1747245512475,-400.0,0.00010958,2]
[361087325,1747245512497,-400.0,0.00010958,2]
[361087326,1747245512522,-400.0,0.00010958,2]
[361087327,1747245512547,-151.0,0.00010958,2]
[361087328,1747245512570,-275.626417,0.00010958,2]
[361087329,1747245512591,-400.0,0.00010958,2]
[361087330,1747245512613,-449.85806327,0.00010958,2]
[361087331,1747245512637,-400.0,0.00010958,2]
[361087332,1747245512658,-400.0,0.00010958,2]
[361087333,1747245512680,-400.0,0.00010958,2]
[361087334,1747245512702,-400.0,0.00010958,2]
[361087335,1747245512724,-400.0,0.00010958,2]
[361087336,1747245512746,-400.0,0.00010958,2]
[361087337,1747245512768,-400.0,0.00010958,2]
[361087338,1747245512790,-400.0,0.00010958,2]
[361087339,1747245512811,-250.0,0.00010958,2]
[361087340,1747245512833,-151.0,0.00010958,2]
[361087341,1747245512855,-151.0,0.00010958,2]
[361087342,1747245512877,-151.0,0.00010958,2]
[361087343,1747245512899,-400.0,0.00010958,2]
[361087344,1747245512921,-151.0,0.00010958,2]
[361087345,1747245512943,-151.0,0.00010958,2]
[361087346,1747245512965,-151.0,0.00010958,2]
[361087347,1747245512987,-400.0,0.00010958,2]
[361087348,1747245513010,-151.0,0.00010958,2]
[361087349,1747245513032,-151.0,0.00010958,2]
[361087350,1747245513055,-151.0,0.00010958,2]
[361087351,1747245513077,-400.0,0.00010958,2]
[361087352,1747245513099,-200.730694,0.00010958,2]
[361087353,1747245513124,-151.0,0.00010958,2]
[361087354,1747245513154,-151.0,0.00010958,2]
[361087355,1747245513185,-151.0,0.00010958,2]
[361087356,1747245513211,-151.0,0.00010958,2]
[361087357,1747245513236,-151.0,0.00010958,2]
[361087358,1747245513265,-151.0,0.00010958,2]
[361087359,1747245513289,-151.0,0.00010958,2]
[361087360,1747245513313,-151.0,0.00010958,2]
[361087361,1747245513338,-151.0,0.00010958,2]
[361087362,1747245513362,-400.0,0.00010958,2]
[361087363,1747245513387,-400.0,0.00010958,2]
[361087364,1747245513412,-400.0,0.00010958,2]
[361087365,1747245513436,-443.55,0.00010958,2]
[361087366,1747245513460,-400.0,0.00010958,2]
[361087367,1747245513483,-400.0,0.00010958,2]
[361087368,1747245513506,-151.0,0.00010958,2]
[361087369,1747245513530,-151.0,0.00010958,2]
[361087370,1747245513553,-539.13142008,0.00010958,2]
[361087371,1747245513576,-215.158675,0.00010958,2]
[361087372,1747245513600,-400.0,0.00010958,2]
[361087373,1747245513628,-708.44,0.00010958,2]
[361087374,1747245513653,-400.0,0.00010958,2]
[361087375,1747245513677,-400.0,0.00010958,2]
[361087376,1747245513701,-400.0,0.00010958,2]
[361087377,1747245513725,-400.0,0.00010958,2]
[361087378,1747245513748,-284.37300578,0.00010958,2]
[361087379,1747245513774,-423.43,0.00010958,2]
[361087380,1747245513799,-525.03,0.00010958,2]
[361087381,1747245513823,-400.0,0.00010958,2]
[361087382,1747245513847,-151.0,0.00010958,2]
[361087383,1747245513872,-151.0,0.00010958,2]
[361087384,1747245513897,-151.0,0.00010958,2]
[361087385,1747245513926,-151.0,0.00010958,2]
[361087386,1747245513952,-400.0,0.00010958,2]
[361087387,1747245513977,-400.0,0.00010958,2]
[361087388,1747245514002,-400.0,0.00010958,2]
[361087389,1747245514027,-868.13,0.00010958,2]
[361087390,1747245514052,-400.0,0.00010958,2]
[361087391,1747245514076,-400.0,0.00010958,2]
[361087392,1747245514101,-249.370857,0.00010958,2]
[361087393,1747245514125,-249.370857,0.00010958,2]
[361087394,1747245514152,-400.0,0.00010958,2]
[361087395,1747245514179,-400.0,0.00010958,2]
[361087396,1747245514205,-249.370857,0.00010958,2]
[361087397,1747245514230,-249.370857,0.00010958,2]
[361087398,1747245514256,-400.0,0.00010958,2]
[361087399,1747245514281,-400.0,0.00010958,2]
[361087400,1747245514308,-400.0,0.00010958,2]
[361087401,1747245514333,-499.59602399,0.00010958,2]
[361087402,1747245514358,-700.15,0.00010958,2]
[361087403,1747245514383,-400.0,0.00010958,2]
[361087404,1747245514413,-405.8,0.00010958,2]
[361087405,1747245514438,-400.0,0.00010958,2]
[361087406,1747245514462,-242.78225626,0.00010958,2]
[361087407,1747245514487,-400.0,0.00010958,2]
[361087408,1747245514511,-400.0,0.00010958,2]
[361087409,1747245514538,-660.96,0.00010958,2]
[361087410,1747245514560,-193.713786,0.00010958,2]
[361087411,1747245514584,-621.47,0.00010958,2]
[361087412,1747245514609,-458.72467877,0.00010958,2]
[361087413,1747245514634,-151.0,0.00010958,2]
[361087414,1747245514659,-151.0,0.00010958,2]
[361087415,1747245514682,-400.0,0.00010958,2]
[361087416,1747245514705,-151.0,0.00010958,2]
[361087417,1747245514729,-411.38,0.00010958,2]
[361087418,1747245514752,-151.0,0.00010958,2]
[361087419,1747245514775,-400.0,0.00010958,2]
[361087420,1747245514799,-151.0,0.00010958,2]
[361087421,1747245514821,-151.0,0.00010958,2]
[361087422,1747245514844,-554.2,0.00010958,2]
[361087423,1747245514866,-674.67,0.00010958,2]
[361087424,1747245514891,-474.95,0.00010958,2]
[361087425,1747245514911,-836.38,0.00010958,2]
[361087426,1747245514933,-400.0,0.00010958,2]
[361087427,1747245514953,-400.0,0.00010958,2]
[361087428,1747245514974,-400.0,0.00010958,2]
[361087429,1747245514999,-400.0,0.00010958,2]
[361087430,1747245515024,-400.0,0.00010958,2]
[361087431,1747245515048,-400.0,0.00010958,2]
[361087432,1747245515297,-400.0,0.00010958,2]
[361087433,1747245515336,-400.0,0.00010958,2]
[361087434,1747245515361,-770.85,0.00010958,2]
[361087435,1747245515385,-400.0,0.00010958,2]
[361087436,1747245515408,-400.0,0.00010958,2]
[361087437,1747245515432,-400.0,0.00010958,2]
[361087438,1747245515455,-400.0,0.00010958,2]
[361087439,1747245515478,-350.02,0.00010958,2]
[361087440,1747245515502,-1331.75,0.00010958,2]
[361087441,1747245515530,-400.0,0.00010958,2]
[361087442,1747245515553,-400.0,0.00010958,2]
[361087443,1747245515577,-417.99,0.00010958,2]
[361087444,1747245515601,-539.4,0.00010958,2]
[361087445,1747245515623,-400.0,0.00010958,2]
[361087446,1747245515648,-400.0,0.00010958,2]
[361087447,1747245515672,-400.0,0.00010958,2]
[361087448,1747245515696,-300.8454586,0.00010958,2]
[361087449,1747245515719,-549.23,0.00010958,2]
[361087450,1747245515742,-400.0,0.00010958,2]
[361087451,1747245515766,-400.0,0.00010958,2]
[361087452,1747245515790,-161.464077,0.00010958,2]
[361087453,1747245515815,-181.071226,0.00010958,2]
[361087454,1747245515840,-1089.969391,0.00010958,2]
[361087455,1747245515865,-161.464077,0.00010958,2]